{"text_format":"1","workbook":"xlsx","n_sheets":10,"sheets":["Welcome","Company Profile","Employee Driver Profile","Employee Benefits","Employee Dry Van","Employee Reefer","Employee Tank Truck","All Other Employee Drivers","Independent Contractors","Responses"],"not_rendered":{"charts":0,"images":223,"macros":1,"external_links":0,"defined_names":9,"comments":0,"pivot_tables":0},"unopened":[],"bounds":{"document_bytes":16777216,"sheet_cells":100000,"rows_first":2000,"rows_last":500,"rows_between":2000,"halvings":0,"cell_chars":16384,"cell_head_chars":4096},"cells_cut":0,"cells_raw":0,"read":"whole","date_system":"1900"}

{"sheet":"Welcome","index":0,"n_rows":55,"n_cols":15,"rows_kept":55,"cut":false,"hidden":false,"merged":[[51,2,51,6],[52,2,52,6],[53,2,53,6],[45,2,45,6],[46,2,46,6],[47,2,47,6],[48,2,48,6],[49,2,49,6],[50,2,50,6],[16,3,17,6],[12,3,13,10],[0,1,0,17],[39,2,39,6],[42,2,42,6],[43,2,43,6],[44,2,44,6],[12,12,12,15]]}
[]
[]
[]
[]
[]
[]
[]
[null,null,null,"WARNING: Please read the following instructions carefully"]
[]
[]
[null,null,null,"PLEASE ENABLE EXCEL MACROS"]
[]
[null,null,null,"This survey requires excel macros to function properly, please save and close this document and follow the instructions on www.trucking.org/driver-compensation-study before proceeding"]
[]
[null,null,null,"If you are using an external monitor, "]
[null,null,null,"PLEASE OPTIMIZE FOR COMPATABILITY"]
[null,null,null,"This will allow you to properly use this survey in combination with external monitors. "]
[]
[null,null,null,"If you are using an external monitor: File > Options > General > Optimize for Compatibility"]
[]
[]
[]
[]
[]
[]
[]
[]
[]
[]
[]
[]
[]
[]
[]
[]
[]
[]
[]
[]
[]
[]
[]
[]
[]
[]
[]
[]
[null,null,null,null,null,null,null,null,null,null,null,null,null,null," "]
[]
[]
[]
[]
[]
[]
[null,"2014-06-30"]

{"sheet":"Company Profile","index":1,"n_rows":54,"n_cols":8,"rows_kept":54,"cut":false,"hidden":false,"merged":[[53,3,53,12],[38,3,38,4],[38,5,38,6],[38,7,38,11],[34,3,34,7],[35,4,35,6],[35,7,35,8],[48,3,51,15],[47,3,47,6],[37,3,37,4],[37,5,37,6],[41,3,41,4],[43,3,43,12],[33,3,33,11],[32,7,32,11],[23,4,23,7],[31,3,31,4],[32,3,32,4],[32,5,32,6],[31,5,31,6],[28,3,28,8],[29,4,29,6],[30,3,30,13],[26,6,26,9],[17,3,17,9],[14,2,14,16],[24,4,24,7],[21,4,21,7],[22,4,22,7],[19,3,19,14],[13,8,13,11],[12,3,12,4],[13,3,13,4],[12,5,12,8],[16,2,16,16],[9,3,9,4],[10,3,10,4],[2,2,3,16],[11,3,11,4],[11,5,11,8],[9,5,9,8],[8,5,8,8],[10,5,10,8],[6,2,6,16],[8,3,8,4]]}
[]
[]
[null,null,"Company Profile"]
[]
[]
[]
[null,null,"Company Contact Information"]
[]
[null,null,null,"Company: "]
[null,null,null,"Name:"]
[null,null,null,"Position:"]
[null,null,null,"Phone Number:"]
[null,null,null,"Email Address:"]
[]
[]
[]
[null,null,"Operations"]
[null,null,1,"Which best describes your company?"]
[]
[null,null,2,"Which best describes your operations type? Choose all that apply. "]
[]
[null,null,null,null,"Dry Van"]
[null,null,null,null,"Refrigerated"]
[null,null,null,null,"Tank Truck"]
[null,null,null,null,"Other *"]
[]
[null,null,null,null,"*Please describe:"]
[]
[null,null,3,"What is your overall average length of haul?"]
[null,null,null,null,null,null,null,"miles"]
[null,null,4,"Number of full-time employee drivers (not independent contractors):"]
[null,null,null,"Solo Drivers:    "]
[null,null,null,"Team Drivers:    ",null,null,null,"(number of drivers, not number of teams)"]
[null,null,5,"Number of power units operated by employee drivers:"]
[null,null,null,"(exclude independent contractor units)"]
[null,null,null,null,null,null,null,"power units"]
[null,null,6,"Number of independent contractor (IC) drivers hauling for your company on a regular basis:"]
[null,null,null,"Solo Drivers:    "]
[null,null,null,"Team Drivers:    ",null,null,null,"(number of drivers, not number of teams)"]
[]
[null,null,7,"How many driver applications did your company receive in 2023?"]
[null,null,null,"Applications: "]
[]
[null,null,null,"What percentage of those applications did your company have to turn away due to inadequate quality or lack of required qualifications?"]
[]
[null,null,null,null,null,null,"%"]
[]
[null,null,null,"Additional Comments:"]
[]
[]
[]
[]
[]
[null,null,null,"Please take a moment to save this document. When ready please continue onto the next tab: "]

{"sheet":"Employee Driver Profile","index":2,"n_rows":53,"n_cols":26,"rows_kept":53,"cut":false,"hidden":false,"merged":[[52,3,52,15],[32,3,32,9],[47,3,50,15],[26,4,26,8],[26,9,26,14],[46,3,46,6],[33,3,33,9],[31,9,31,11],[31,12,31,15],[31,3,31,6],[29,3,29,12],[27,3,27,13],[30,3,30,8],[28,3,28,11],[34,3,34,9],[38,3,38,9],[2,2,3,16],[40,3,40,9],[44,3,44,9],[41,3,41,9],[20,3,20,16],[18,3,18,11],[6,2,6,16],[9,3,9,4],[10,3,10,4],[8,3,8,13],[9,5,9,6],[10,5,10,6],[10,7,10,11],[16,3,16,7],[14,3,14,8]]}
[]
[]
[null,null,"Employee Driver Profile"]
[null,null,null,null,null,null,null,null,null,null,null,null,null,null,null,null,null,null,null,"months","days per week","weekly","Yes, all drivers",null,null,"hours"]
[null,null,null,null,null,null,null,null,null,null,null,null,null,null,null,null,null,null,null,"years","days per month","every other week","Yes, some drivers",null,null,"weeks"]
[null,null,null,null,null,null,null,null,null,null,null,null,null,null,null,null,null,null,null,null,null,"twice monthly","No",null,null,"days"]
[null,null,"Employee Driver Profile",null,null,null,null,null,null,null,null,null,null,null,null,null,null,null,null,null,null,"monthly"]
[null,null,null,null,null,null,null,null,null,null,null,null,null,null,null,null,null,null,null,null,null,"other"]
[null,null,1,"Number of full-time employee drivers (not independent contractors):"]
[null,null,null,"Solo Drivers:    ",null,{"$f":"'Company Profile'!F32","v":0}]
[null,null,null,"Team Drivers:    ",null,{"$f":"'Company Profile'!F33","v":0},null,"(number of drivers, not number of teams)"]
[]
[null,null,2,"What was your 2023 employee driver turnover rate?",null,null,null,null,null,null,"%"]
[]
[null,null,3,"What is the minimum age required for your employee drivers:"]
[]
[null,null,4,"What is the average age of your employee drivers:"]
[]
[null,null,5,"Do you hire drivers directly out of truck driver training school? (i.e. inexperienced drivers)?"]
[]
[null,null,6,"How much OTR driving experience is required, in months or years, in order for a new employee driver to be considered \"experienced\"?"]
[]
[null,null,null,"What percentage of your employee drivers are considered \"experienced\"?",null,null,null,null,null,null,null,null,"%"]
[]
[null,null,7,"On average, how many days per week or month are your employee OTR/non-local drivers on the road before returning home?"]
[]
[null,null,null,null,"*Other or not applicable, please describe:"]
[null,null,8,"Do you offer a one-time sign-on bonus to new drivers?"]
[null,null,9,"Do you offer a referral bonus?"]
[null,null,10,"Do you offer a tenure bonus?"]
[null,null,11,"Do you offer a bonus for clean DOT roadside inspections?"]
[null,null,12,"How often are employee drivers paid?",null,null,null,null,null,"If other, please describe:"]
[null,null,13,"Do you require employee drivers to have a hazmat endorsement?"]
[]
[null,null,14,"Do you require employee drivers to have a TWIC?"]
[]
[null,null,15,"Are your employee drivers unionized?"]
[]
[null,null,16,"Did you increase driver pay rates in 2023?"]
[]
[]
[null,null,17,"Do you plan to increase driver pay rates before the end of 2024?"]
[]
[]
[null,null,18,"Do you provide guaranteed weekly minimum earnings?"]
[]
[null,null,null,"Additional Comments:"]
[]
[]
[]
[]
[]
[null,null,null,"Please take a moment to save this document. When ready please continue onto the next tab: "]

{"sheet":"Employee Benefits","index":3,"n_rows":66,"n_cols":19,"rows_kept":66,"cut":false,"hidden":false,"merged":[[2,2,3,16],[50,2,50,16],[35,3,35,9],[33,3,33,9],[44,2,44,16],[46,3,46,13],[40,4,40,7],[41,5,41,14],[39,3,39,8],[37,3,37,9],[31,2,31,16],[6,2,6,16],[8,3,8,13],[15,3,15,13],[19,2,19,16],[21,3,21,13],[63,2,63,6],[64,2,64,6],[59,2,59,16],[11,2,11,16],[13,3,13,13],[25,2,25,16],[27,3,27,13]]}
[]
[]
[null,null,"Employee Benefits"]
[null,null,null,null,null,null,null,null,null,null,null,null,null,null,null,null,null,null,"per mile"]
[null,null,null,null,null,null,null,null,null,null,null,null,null,null,null,null,null,null,"per day"]
[null,null,null,null,null,null,null,null,null,null,null,null,null,null,null,null,null,null,"other, please describe"]
[null,null,"Holidays"]
[null,null,null,null,null,null,null,null,null,null,null,null,null,null,null,null,null,null,"Flat Rate"]
[null,null,null,"Does your company offer paid holidays to employee drivers?",null,null,null,null,null,null,null,null,null,null,null,null,null,null,"Average Daily Mileage"]
[null,null,null,null,null,null,null,null,null,null,null,null,null,null,null,null,null,null,"Average Daily Income"]
[null,null,null,null,null,null,null,null,null,null,null,null,null,null,null,null,null,null,"Hourly Rate"]
[null,null,"Paid Time Off",null,null,null,null,null,null,null,null,null,null,null,null,null,null,null,"Not Applicable"]
[null,null,null,null,null,null,null,null,null,null,null,null,null,null,null,null,null,null,"Other, please describe in the comment box below"]
[null,null,null,"Does your company offer paid vacation or sick days to employee drivers?"]
[]
[null,null,null,"Does your company distinguish between \"sick\" days and \"vacation\" days?"]
[]
[]
[]
[null,null,"Lodging, Meals & Incidentals "]
[null,null,null,null,null,null,null,null,null,null,null,null,null,null,null,null,null,null,"Yes, actual expenses reimbursed. "]
[null,null,null,"Does your company offer to cover any lodging, meals, or incidental expenses for employee drivers?",null,null,null,null,null,null,null,null,null,null,null,null,null,null,"Yes, per diem."]
[null,null,null,null,null,null,null,null,null,null,null,null,null,null,null,null,null,null,"No"]
[null,null,null,null,null,null,null,null,null,null,null,null,null,null,null,null,null,null,"Not Applicable "]
[]
[null,null,"Life Insurance"]
[]
[null,null,null,"Does your company pay in full life insurance coverage for your employee drivers?"]
[]
[]
[]
[null,null,"Health Benefits"]
[]
[null,null,1,"Does your company offer medical insurance to employee drivers?"]
[]
[null,null,2,"Does your company offer dental insurance to employee drivers?"]
[]
[null,null,3,"Does your company offer vision insurance to employee drivers?"]
[]
[null,null,4,"Do you offer any other types of health related benefits?"]
[null,null,null,null,"If yes, please describe below."]
[]
[]
[]
[null,null,"Retirement"]
[]
[null,null,null,"Does your company offer a retirement plan for employee drivers?"]
[]
[]
[]
[null,null,"Additional Benefits"]
[]
[null,null,null,"Does you company offer any of the following additional benefits to employee drivers? Check all that apply. "]
[null,null,null,1,"Profit Sharing Program/Bonus "]
[null,null,null,2,"Discount Program (Discounts on certain affiliated products or brands)"]
[null,null,null,3,"Passenger Program (Ability to take passengers on the road with the driver)"]
[null,null,null,4,"Pet Program (Ability to take pets on the road with the driver)"]
[]
[]
[null,null,"Please continue on to provide information on driver compensation as it relates to your company's specific operations/driver types. "]
[]
[]
[null,null,null,null,"Click on your company's operation(s) below as a shortcut to continue filling out the survey:"]
[]
[]
[null,"2014-06-30"]

{"sheet":"Employee Dry Van","index":4,"n_rows":36,"n_cols":25,"rows_kept":36,"cut":false,"hidden":false,"merged":[[15,3,15,10],[16,3,16,13],[2,2,3,16],[0,1,0,17],[17,3,17,7],[6,2,6,16],[8,3,8,13],[10,2,10,3],[11,3,11,13],[12,3,12,13],[13,3,13,13],[14,3,14,9],[35,2,35,16],[18,3,18,9],[19,3,19,9],[21,3,21,10],[22,2,22,16],[27,2,27,6],[34,7,34,11]]}
[]
[]
[null,null,"Dry Van"]
[]
[]
[]
[null,null,null,null,null,null,null,null,null,null,null,null,null,null,null,null,null,null,"cents per mile","cents per mile"]
[null,null,null,null,null,null,null,null,null,null,null,null,null,null,null,null,null,null,"per hour","per hour"]
[null,null,null,"Does your company have dry van employee drivers on dedicated routes?",null,null,null,null,null,null,null,null,null,null,null,null,null,null,"fixed annual salary","fixed annual salary"]
[null,null,null,null,null,null,null,null,null,null,null,null,null,null,null,null,null,null,"per placarded load","per placarded load"]
[null,null,"Bonuses:",null,null,null,null,null,null,null,null,null,null,null,null,null,null,null,"other","other"]
[null,null,null,"Does your company offer a fuel efficiency bonus to drivers meeting your company's fuel efficiency goals?"]
[null,null,null,"Does your company offer a production bonus to drivers meeting mileage or revenue targets over a specified period of time?"]
[null,null,null,"Does your company offer bonuses for accident-free miles driven during a specified period of time?",null,null,null,null,null,null,null,null,null,null,null,null,null,null,null,null,null,null,null,null," "]
[null,null,null,"Does your company offer pay for each extra stop on a load?"]
[null,null,null,"Does your company offer bonus pay for on-time delivery?"]
[null,null,null,"Does your company offer additional compensation for drivers passing through or delivering to certain areas of the country?"]
[null,null,null,"Does your company offer detention time pay?"]
[null,null,null,"Does your company pay drivers for handling freight?"]
[null,null,null,"Does your company offer shorter length-of-haul pay?"]
[null,null,null,"Does your company offer a premium for hazmat loads? (only respond if your company hauls hazmat loads)"]
[null,null,null,"If there are any additional pay options or bonuses your company offers, please "]
[]
[]
[]
[null,null,null,null,"Click on your company's operation(s) below as a shortcut to continue filling out the survey:"]
[]
[]
[null,"2014-06-30"]
[]
[]
[]
[]
[]
[]
[null,null,"If none of the remaining operations above apply to your company,  please save this document and attach the file in an email to:"]

{"sheet":"Employee Reefer","index":5,"n_rows":51,"n_cols":25,"rows_kept":51,"cut":false,"hidden":false,"merged":[[6,2,6,16],[8,3,8,13],[10,2,10,3],[11,3,11,13],[18,3,18,9],[12,3,12,13],[13,3,13,13],[14,3,14,9],[15,3,15,10],[16,3,16,13],[27,3,27,13],[19,3,19,9],[21,3,21,10],[22,2,22,16],[17,3,17,7],[42,2,42,6],[49,6,49,10],[50,1,50,15],[2,2,3,16],[33,3,33,9],[34,3,34,9],[36,3,36,10],[28,3,28,13],[29,3,29,9],[30,3,30,10],[31,3,31,13],[32,3,32,7],[23,2,23,16],[24,3,24,8],[25,2,25,3],[26,3,26,13]]}
[]
[]
[null,null,"Refrigerated"]
[]
[]
[]
[null,null,"Part 1: Solo Drivers",null,null,null,null,null,null,null,null,null,null,null,null,null,null,null,"cents per mile"]
[null,null,null,null,null,null,null,null,null,null,null,null,null,null,null,null,null,null,"per hour"]
[null,null,null,"Do you employ solo refrigerated drivers?",null,null,null,null,null,null,null,null,null,null,null,null,null,null,"fixed annual salary"]
[null,null,null,null,null,null,null,null,null,null,null,null,null,null,null,null,null,null,"other"]
[null,null,"Bonuses:"]
[null,null,null,"Does your company offer a fuel efficiency bonus to drivers meeting your company's fuel efficiency goals?"]
[null,null,null,"Does your company offer a production bonus to drivers meeting mileage or revenue targets over a specified period of time?"]
[null,null,null,"Does your company offer bonuses for accident-free miles driven during a specified period of time?",null,null,null,null,null,null,null,null,null,null,null,null,null,null,null,null,null,null,null,null," "]
[null,null,null,"Does your company offer pay for each extra stop on a load?"]
[null,null,null,"Does your company offer bonus pay for on-time delivery?"]
[null,null,null,"Does your company offer additional compensation for drivers passing through or delivering to certain areas of the country?"]
[null,null,null,"Does your company offer detention time pay?"]
[null,null,null,"Does your company pay drivers for handling freight?"]
[null,null,null,"Does your company offer shorter length-of-haul pay?"]
[null,null,null,"Does your company offer a premium for hazmat loads? (only respond if your company hauls hazmat loads)"]
[null,null,null,"If there are any additional pay options or bonuses your company offers, please "]
[null,null,"Part 2: Team Drivers"]
[]
[null,null,null,"Do you employ refrigerated team drivers?"]
[null,null,"Bonuses:"]
[null,null,null,"Does your company offer a fuel efficiency bonus to drivers meeting your company's fuel efficiency goals?"]
[null,null,null,"Does your company offer a production bonus to drivers meeting mileage or revenue targets over a specified period of time?"]
[null,null,null,"Does your company offer bonuses for accident-free miles driven during a specified period of time?"]
[null,null,null,"Does your company offer pay for each extra stop on a load?"]
[null,null,null,"Does your company offer bonus pay for on-time delivery?"]
[null,null,null,"Does your company offer additional compensation for drivers passing through or delivering to certain areas of the country?"]
[null,null,null,"Does your company offer detention time pay?"]
[null,null,null,"Does your company pay drivers for handling freight?"]
[null,null,null,"Does your company offer shorter length-of-haul pay?"]
[null,null,null,"Does your company offer a premium for hazmat loads? (only respond if your company hauls hazmat loads)"]
[null,null,null,"If there are any additional pay options or bonuses your company offers, please "]
[]
[]
[]
[null,null,null,"Click on your company's operation(s) below as a shortcut to continue filling out the survey:"]
[]
[]
[null,"2014-06-30"]
[]
[]
[]
[]
[]
[]
[null,"If none of the remaining operations above apply to your company,  please save this document and attach the file in an email to:"]

{"sheet":"Employee Tank Truck","index":6,"n_rows":54,"n_cols":25,"rows_kept":54,"cut":false,"hidden":false,"merged":[[21,3,21,10],[24,2,24,16],[38,3,38,10],[27,2,27,3],[28,3,28,13],[29,3,29,13],[30,3,30,13],[31,3,31,9],[32,3,32,10],[33,3,33,13],[34,3,34,7],[35,3,35,9],[36,3,36,9],[25,3,25,9],[45,2,45,6],[52,7,52,11],[53,2,53,16],[2,2,3,16],[11,3,11,13],[6,2,6,16],[8,3,8,13],[10,2,10,3],[12,3,12,13],[13,3,13,13],[14,3,14,9],[15,3,15,10],[16,3,16,13],[17,3,17,7],[18,3,18,9],[19,3,19,9]]}
[]
[]
[null,null,"Tank Truck (OTR & Local)         "]
[]
[]
[]
[null,null,"Part 1: OTR",null,null,null,null,null,null,null,null,null,null,null,null,null,null,null,"cents per mile"]
[null,null,null,null,null,null,null,null,null,null,null,null,null,null,null,null,null,null,"per hour"]
[null,null,null,"Do you have employee drivers hauling tank trucks OTR? (Non-local, see below)",null,null,null,null,null,null,null,null,null,null,null,null,null,null,"fixed annual salary"]
[null,null,null,null,null,null,null,null,null,null,null,null,null,null,null,null,null,null,"other"]
[null,null,"Bonuses:"]
[null,null,null,"Does your company offer a fuel efficiency bonus to drivers meeting your company's fuel efficiency goals?"]
[null,null,null,"Does your company offer a production bonus to drivers meeting mileage or revenue targets over a specified period of time?"]
[null,null,null,"Does your company offer bonuses for accident-free miles driven during a specified period of time?",null,null,null,null,null,null,null,null,null,null,null,null,null,null,null,null,null,null,null,null," "]
[null,null,null,"Does your company offer pay for each extra stop on a load?"]
[null,null,null,"Does your company offer bonus pay for on-time delivery?"]
[null,null,null,"Does your company offer additional compensation for drivers passing through or delivering to certain areas of the country?"]
[null,null,null,"Does your company offer detention time pay?"]
[null,null,null,"Does your company pay drivers for handling freight?"]
[null,null,null,"Does your company offer shorter length-of-haul pay?"]
[null,null,null,"Does your company offer a premium for hazmat loads? (only respond if your company hauls hazmat loads)"]
[null,null,null,"If there are any additional pay options or bonuses your company offers, please "]
[]
[]
[null,null,"Part 2: Local"]
[null,null,null,"Do you have employee drivers hauling tank trucks locally?",null,null,null,null,null,null,null,null,null,null,null,null,null,null,null,null," "]
[]
[null,null,"Bonuses:"]
[null,null,null,"Does your company offer a fuel efficiency bonus to drivers meeting your company's fuel efficiency goals?"]
[null,null,null,"Does your company offer a production bonus to drivers meeting mileage or revenue targets over a specified period of time?"]
[null,null,null,"Does your company offer bonuses for accident-free miles driven during a specified period of time?"]
[null,null,null,"Does your company offer pay for each extra stop on a load?"]
[null,null,null,"Does your company offer bonus pay for on-time delivery?"]
[null,null,null,"Does your company offer additional compensation for drivers passing through or delivering to certain areas of the country?"]
[null,null,null,"Does your company offer detention time pay?"]
[null,null,null,"Does your company pay drivers for handling freight?"]
[null,null,null,"Does your company offer shorter length-of-haul pay?"]
[null,null,null,"Does your company offer a premium for hazmat loads? (only respond if your company hauls hazmat loads)"]
[null,null,null,"If there are any additional pay options or bonuses your company offers, please ",null,null,null,null,null,null,null,null,null,null,null,null,null,null,"Average Daily Income"]
[null,null,null,null,null,null,null,null,null,null,null,null,null,null,null,null,null,null,"Hourly Rate"]
[]
[]
[]
[null,null,null,null,"Click on your company's operation(s) below as a shortcut to continue filling out the survey:"]
[]
[]
[null,"2014-06-30"]
[]
[]
[]
[]
[]
[]
[null,null,"If none of the remaining operations above apply to your company,  please save this document and attach the file in an email to:"]

{"sheet":"All Other Employee Drivers","index":7,"n_rows":36,"n_cols":25,"rows_kept":36,"cut":false,"hidden":false,"merged":[[14,3,14,9],[15,3,15,10],[27,2,27,6],[16,3,16,13],[34,7,34,11],[35,2,35,16],[2,2,3,16],[18,3,18,9],[19,3,19,9],[21,3,21,10],[22,2,22,16],[17,3,17,7],[6,2,6,16],[8,3,8,13],[10,2,10,3],[11,3,11,13],[12,3,12,13],[13,3,13,13]]}
[]
[]
[null,null,"All Other Employee Drivers"]
[]
[]
[]
[null,null,null,null,null,null,null,null,null,null,null,null,null,null,null,null,null,null,"cents per mile"]
[null,null,null,null,null,null,null,null,null,null,null,null,null,null,null,null,null,null,"per hour"]
[null,null,null,"Do you other employee drivers not previously listed?",null,null,null,null,null,null,null,null,null,null,null,null,null,null,"fixed annual salary"]
[null,null,null,null,null,null,null,null,null,null,null,null,null,null,null,null,null,null,"other"]
[null,null,"Bonuses:"]
[null,null,null,"Does your company offer a fuel efficiency bonus to drivers meeting your company's fuel efficiency goals?"]
[null,null,null,"Does your company offer a production bonus to drivers meeting mileage or revenue targets over a specified period of time?"]
[null,null,null,"Does your company offer bonuses for accident-free miles driven during a specified period of time?",null,null,null,null,null,null,null,null,null,null,null,null,null,null,null,null,null,null,null,null," "]
[null,null,null,"Does your company offer pay for each extra stop on a load?"]
[null,null,null,"Does your company offer bonus pay for on-time delivery?"]
[null,null,null,"Does your company offer additional compensation for drivers passing through or delivering to certain areas of the country?"]
[null,null,null,"Does your company offer detention time pay?"]
[null,null,null,"Does your company pay drivers for handling freight?"]
[null,null,null,"Does your company offer shorter length-of-haul pay?"]
[null,null,null,"Does your company offer a premium for hazmat loads? (only respond if your company hauls hazmat loads)"]
[null,null,null,"If there are any additional pay options or bonuses your company offers, please "]
[]
[]
[]
[null,null,null,null,"Click on your company's operation(s) below as a shortcut to continue filling out the survey:"]
[]
[]
[null,"2014-06-30"]
[]
[]
[]
[]
[]
[]
[null,null,"If none of the remaining operations above apply to your company,  please save this document and attach the file in an email to:"]

{"sheet":"Independent Contractors","index":8,"n_rows":42,"n_cols":26,"rows_kept":42,"cut":false,"hidden":false,"merged":[[14,3,14,12],[17,3,17,9],[20,3,20,10],[12,3,12,13],[13,3,13,13],[15,3,15,10],[16,3,16,13],[19,3,19,12],[11,3,11,13],[6,2,6,16],[8,3,8,13],[10,2,10,3],[2,2,3,16],[22,3,22,10],[23,3,23,10],[24,3,24,10],[27,3,27,13],[25,3,25,10],[34,7,34,11],[32,2,32,16],[33,2,33,16],[26,3,26,10],[28,3,28,13]]}
[]
[null,null,null,null,null,null,null,null,null,null,null,null,null,null,null,null,null,null,"cents per mile"]
[null,null,"Independent Contractors",null,null,null,null,null,null,null,null,null,null,null,null,null,null,null,"per hour","Yes"]
[null,null,null,null,null,null,null,null,null,null,null,null,null,null,null,null,null,null,"fixed annual salary","Yes, sometimes"]
[null,null,null,null,null,null,null,null,null,null,null,null,null,null,null,null,null,null,"per placarded load","No"]
[null,null,null,null,null,null,null,null,null,null,null,null,null,null,null,null,null,null,"other","Not sure"]
[]
[]
[null,null,null,"Does your company utilize independent contractors?"]
[]
[null,null,"Bonuses:"]
[null,null,null,"Does your company offer a production bonus to drivers meeting mileage or revenue targets over a specified period of time?"]
[null,null,null,"Does your company offer bonuses for accident-free miles driven during a specified period of time?"]
[null,null,null,"Does your company offer detention time payment?",null,null,null,null,null,null,null,null,null,null,null,null,null,null,null,null,null,null,null,null," "]
[null,null,null,"Does your company compensate independent contractor drivers for handling freight?"]
[null,null,null,"Does your company offer a length of contract bonus?"]
[null,null,null,"Does your company offer sign-on or referral bonuses?"]
[null,null,null,"Does your company offer payment for each extra stop on a load?"]
[null,null,null,"Does your company offer a premium for hazmat loads? (only respond if your company hauls hazmat loads)"]
[null,null,null,"Does your company or an affiliate assist with the leasing or purchasing of trucks?"]
[null,null,null,"Does your company provide cash advances to independent contractors?"]
[null,null,null,"Does your company require independent contractor drivers to pay for their own base plates?"]
[null,null,null,"Does your company require independent contractor drivers to pay their own tolls?"]
[null,null,null,"Does your company pass a fuel surcharge on to independent contractors?"]
[null,null,null,"Does your company offer a bonus for clean DOT roadside inspections?"]
[null,null,null,"Does your company offer liability insurance to independent contractors?"]
[null,null,null,"Does your company offer maintenance for independent contractors’ tractors?"]
[null,null,null,"What is the average age of the tractors driven by your company's independent contractors?",null,null,null,null,null,null,null,null,null,null,null,null,"years"]
[null,null,null,"Is there a maximum allowable age for these tractors?"]
[]
[]
[]
[null,null,"You have reached the end of the Truckload Driver Compensation Survey! Thank you for participating! "]
[null,null,"At this time please save this document send it as an attachment to: "]
[]
[]
[null,null,null,null,null,null,null,null,null,null,null,null,null,null,null,null,null,null,null,null,null,"Yes, full",null,"Yes"]
[null,null,null,null,null,null,null,null,null,null,null,null,null,null,null,null,null,null,null,null,null,"Yes, partial",null,"No"]
[null,null,null,null,null,null,null,null,null,null,null,null,null,null,null,null,null,null,null,null,null,"No"]
[null,null,null,null,null,null,null,null,null,null,null,null,null,null,null,null,null,null,null,null,null,"Not sure",null,null,null,"Yes, required"]
[null,null,null,null,null,null,null,null,null,null,null,null,null,null,null,null,null,null,null,null,null,null,null,null,null,"Yes, optional"]
[null,null,null,null,null,null,null,null,null,null,null,null,null,null,null,null,null,null,null,null,null,null,null,null,null,"No"]

{"sheet":"Responses","index":9,"n_rows":81,"n_cols":224,"rows_kept":81,"cut":false,"hidden":true,"merged":[]}
["Company","Name","Position","PhoneNumber","Email","Q1","Q2A","Q2B","Q2C","Q2D","Q2E","Q3","Q4A","Q4B","Q5","Q6A","Q6B","Q7A","Q7B","QAC",null,null,null,null,null,null,null,null,null,null,null,null,null,null,null,null,null,null,null,null,null,null,null,null,null,null,null,null,null,null,null,null,null,null,null,null,"Options1",null,"Options2"]
[{"$f":"'Company Profile'!$F$9","v":0},{"$f":"'Company Profile'!$F$10","v":0},{"$f":"'Company Profile'!$F$11","v":0},{"$f":"'Company Profile'!$F$12","v":0},{"$f":"'Company Profile'!$F$13","v":0},{"$f":"IF(F3=TRUE,\"1\",IF(F4=TRUE,\"0\",\"NR\"))","v":"NR"},false,false,false,false,{"$f":"'Company Profile'!G27","v":0},{"$f":"'Company Profile'!E30","v":0},{"$f":"'Company Profile'!F32","v":0},{"$f":"'Company Profile'!F33","v":0},{"$f":"'Company Profile'!E36","v":0},{"$f":"'Company Profile'!F38","v":0},{"$f":"'Company Profile'!F39","v":0},{"$f":"'Company Profile'!F42","v":0},{"$f":"'Company Profile'!F46","v":0},{"$f":"'Company Profile'!D49","v":0}]
[null,null,null,null,null,false,null,null,null,null,null,null,null,null,null,null,null,null,null,null,null,null,null,null,null,null,null,null,null,null,null,null,null,null,null,null,null,null,null,null,null,null,null,null,null,null,null,null,null,null,null,null,null,null,null,null,"Per Hour",null,"Years of Experience"]
[null,null,null,null,null,false,null,null,null,null,null,null,null,null,null,null,null,null,null,null,null,null,null,null,null,null,null,null,null,null,null,null,null,null,null,null,null,null,null,null,null,null,null,null,null,null,null,null,null,null,null,null,null,null,null,null,"Per Delivery",null,"Accident-Free Miles"]
[null,null,null,null,null,null,null,null,null,null,null,null,null,null,null,null,null,null,null,null,null,null,null,null,null,null,null,null,null,null,null,null,null,null,null,null,null,null,null,null,null,null,null,null,null,null,null,null,null,null,null,null,null,null,null,null,"Other",null,"Other"]
[]
[]
["Q1A","Q1B","Q2","Q3","Q4","Q5","Q5a","Q5b","Q5c","Q5d","Q5e","Q5f","Q5g","Q5h","Q5i","Q5g","Q5(AC)","Q6A","Q6B","Q6C","Q7A","Q7B","Q7C","Q8A","Q8B","Q9A","Q9B","Q10A","Q10B","Q10C","Q11A","Q11B","Q12A","Q12B","Q13","Q14","COMM","Q15","Q16","Q16a","Q16b","Q16c","Q16d","Q16e","Q16f","Q17A","Q17B","Q18","Q18a","Q18b","Q18c","Q18d"]
[{"$f":"'Employee Driver Profile'!$F$10","v":0},{"$f":"'Employee Driver Profile'!$F$11","v":0},{"$f":"'Employee Driver Profile'!J13","v":0},{"$f":"'Employee Driver Profile'!J15","v":0},{"$f":"'Employee Driver Profile'!I17","v":0},{"$f":"IF(F10=TRUE,\"1\",IF(F11=TRUE,\"0\",\"NR\"))","v":"NR"},{"$f":"IF(G10=TRUE,\"1\",IF(G11=TRUE,\"0\",\"NR\"))","v":"NR"},{"$f":"IF(H10=TRUE,\"1\",IF(H11=TRUE,\"0\",\"NR\"))","v":"NR"},{"$f":"IF(I10=TRUE,\"1\",IF(I11=TRUE,\"2\",IF(I12=TRUE,\"3\",\"NR\")))","v":"NR"},null,null,{"$f":"IF(L10=TRUE,\"1\",IF(L11=TRUE,\"0\",\"NR\"))","v":"NR"},null,{"$f":"IF(N10=TRUE,\"1\",IF(N11=TRUE,\"0\",\"NR\"))","v":"NR"},null,null,null,{"$f":"'Employee Driver Profile'!F22","v":0},null,{"$f":"'Employee Driver Profile'!L23","v":0},{"$f":"'Employee Driver Profile'!F26","v":0},null,{"$f":"'Employee Driver Profile'!J27","v":0},{"$f":"IF(X10=TRUE,\"1\",IF(X11=TRUE,\"0\",\"NR\"))","v":"NR"},null,{"$f":"IF(Z10=TRUE,\"1\",IF(Z11=TRUE,\"0\",\"NR\"))","v":"NR"},null,{"$f":"IF(AB10=TRUE,\"1\",IF(AB11=TRUE,\"0\",\"NR\"))","v":"NR"},null,null,{"$f":"IF(AE10=TRUE,\"1\",IF(AE11=TRUE,\"0\",\"NR\"))","v":"NR"},null,null,{"$f":"'Employee Driver Profile'!M32","v":0},null,null,{"$f":"'Employee Driver Profile'!D48","v":0},{"$f":"IF(AL10=TRUE,\"1\",IF(AL11=TRUE,\"0\",\"NR\"))","v":"NR"},{"$f":"IF(AM10=TRUE,\"1\",IF(AM11=TRUE,\"0\",\"NR\"))","v":"NR"},null,{"$f":"IF(AO10=TRUE,\"1\",IF(AO11=TRUE,\"0\",\"NR\"))","v":"NR"},{"$f":"IF(AP10=TRUE,\"1\",IF(AP11=TRUE,\"0\",\"NR\"))","v":"NR"},false,false,false,{"$f":"IF(AT10=TRUE,\"1\",IF(AT11=TRUE,\"2\",IF(AT12=TRUE,\"3\",\"NR\")))","v":"NR"},null,{"$f":"IF(AV10=TRUE,\"1\",IF(AV11=TRUE,\"0\",\"NR\"))","v":"NR"}]
[null,null,null,null,null,false,false,false,false,null,null,false,null,false,null,null,null,null,null,null,null,null,null,false,null,false,null,false,null,null,false,null,null,null,null,null,null,false,false,null,false,false,null,null,null,false,null,false]
[null,null,null,null,null,false,false,false,false,null,null,false,null,false,null,null,null,null,null,null,null,null,null,false,null,false,null,false,null,null,false,null,null,null,null,null,null,false,false,null,false,false,null,null,null,false,null,false]
[null,null,null,null,null,null,null,null,false,null,null,null,null,null,null,null,null,null,null,null,null,null,null,null,null,null,null,null,null,null,null,null,null,null,null,null,null,null,null,null,null,null,null,null,null,false]
[]
[]
["Q1","Q1A","Q1B","Q1C","Q1D","Q2","Q3","Q3A","Q3B","Q3C","Q3D","Q3E","Q3F","Q3G","Q4","Q4A","Q4B","Q4C","Q4D","Q4E","Q5","Q5A","Q5B",null,"Q3NA","Q3NB","Q3NC","Q3ND","Q7","Q7A","Q7(Employee Single)","Q7(Employer Single)","Q7(OOPSingle)","Q7(ENROLSingle)","Q7(Employee(w/Spouse))","Q7(Employer(w/Spouse))","Q7(OOPw/Spouse)","Q7(ENROLw/Spouse)","Q7(Employee(w/child))","Q7(Employer(w/child))","Q7(OOPw/child)","Q7(ENROLw/child)","Q7(Employee(w/fam))","Q7(Employer(w/fam))","Q7(OOPw/fam)","Q7(ENROLw/fam)","Q7C","Q7D","Q7E","Q8","Q8A","Q8(Employee Single)","Q8(Employer Single)","Q8(OOPSingle)","Q8(ENROLSingle)","Q8(Employee(w/Spouse))","Q8(Employer(w/Spouse))","Q8(OOPw/Spouse)","Q8(ENROLw/Spouse)","Q8(Employee(w/child))","Q8(Employer(w/child))","Q8(OOPw/child)","Q8(ENROLw/child)","Q8(Employee(w/fam))","Q8(Employer(w/fam))","Q8(OOPw/fam)","Q8(ENROLw/fam)","Q8C","Q8D","Q8 Self-Insured","Q9","Q9A","Q9(Employee Single)","Q9(Employer Single)","Q9(OOPSingle)","Q9(ENROLSingle)","Q9(Employee(w/Spouse))","Q9(Employer(w/Spouse))","Q9(OOPw/Spouse)","Q9(ENROLw/Spouse)","Q9(Employee(w/child))","Q9(Employer(w/child))","Q9(OOPw/child)","Q9(ENROLw/child)","Q9(Employee(w/fam))","Q9(Employer(w/fam))","Q9(OOPw/fam)","Q9(ENROLw/fam)","Q9C","Q9D","Q9 Self-Insured","Q10","Q10A","Q11","Q11A","Q11B","Q11B1","Q11B2","Q11C","Q11C1","Q11D","Q11AC","Q12A","Q12B","Q12C","Q12D"]
[{"$f":"IF(A17=TRUE,\"1\",IF(A18=TRUE,\"0\",\"NR\"))","v":"NR"},null,null,null,null,{"$f":"IF(F17=TRUE,\"1\",IF(F18=TRUE,\"0\",\"NR\"))","v":"NR"},{"$f":"IF(G17=TRUE,\"1\",IF(G18=TRUE,\"0\",\"NR\"))","v":"NR"},null,null,null,null,null,null,null,{"$f":"IF(O17=TRUE,\"1\",IF(O18=TRUE,\"0\",\"NR\"))","v":"NR"},null,null,null,null,null,{"$f":"IF(U17=TRUE,\"1\",IF(U18=TRUE,\"0\",\"NR\"))","v":"NR"},null,null,null,null,null,null,null,{"$f":"IF(AC17=TRUE,\"1\",IF(AC18=TRUE,\"0\",\"NR\"))","v":"NR"},{"$f":"IF(AD17=TRUE,\"1\",IF(AD18=TRUE,\"0\",\"NR\"))","v":"NR"},null,null,null,null,null,null,null,null,null,null,null,null,null,null,null,null,null,{"$f":"IF(AV17=TRUE,\"1\",IF(AV18=TRUE,\"0\",\"NR\"))","v":"NR"},null,{"$f":"IF(AX17=TRUE,\"1\",IF(AX18=TRUE,\"0\",\"NR\"))","v":"NR"},{"$f":"IF(AY17=TRUE,\"1\",IF(AY18=TRUE,\"0\",\"NR\"))","v":"NR"},null,null,null,null,null,null,null,null,null,null,null,null,null,null,null,null,null,null,{"$f":"IF(BR17=TRUE,\"1\",IF(BR18=TRUE,\"0\",\"NR\"))","v":"NR"},{"$f":"IF(BS17=TRUE,\"1\",IF(BS18=TRUE,\"0\",\"NR\"))","v":"NR"},{"$f":"IF(BT17=TRUE,\"1\",IF(BT18=TRUE,\"0\",\"NR\"))","v":"NR"},null,null,null,null,null,null,null,null,null,null,null,null,null,null,null,null,null,null,{"$f":"IF(CM17=TRUE,\"1\",IF(CM18=TRUE,\"0\",\"NR\"))","v":"NR"},{"$f":"IF(CN17=TRUE,\"1\",IF(CN18=TRUE,\"0\",\"NR\"))","v":"NR"},{"$f":"'Employee Benefits'!$F$42","v":0},{"$f":"IF(CP17=TRUE,\"1\",IF(CP18=TRUE,\"0\",\"NR\"))","v":"NR"},{"$f":"IF(CQ17=TRUE,\"1\",IF(CQ18=TRUE,\"0\",\"NR\"))","v":"NR"},{"$f":"IF(CR17=TRUE,\"1\",IF(CR18=TRUE,\"0\",\"NR\"))","v":"NR"},null,null,{"$f":"IF(CU17=TRUE,\"1\",IF(CU18=TRUE,\"0\",\"NR\"))","v":"NR"},{"$f":"IF(CV17=TRUE,\"1\",IF(CV18=TRUE,\"0\",\"NR\"))","v":"NR"},{"$f":"IF(CW17=TRUE,\"1\",IF(CW18=TRUE,\"0\",\"NR\"))","v":"NR"},null,false,false,false,false]
[false,null,null,null,null,false,false,null,null,null,null,null,null,null,false,null,null,null,null,null,false,null,null,null,null,null,null,null,false,false,null,null,null,null,null,null,null,null,null,null,null,null,null,null,null,null,null,false,null,false,false,null,null,null,null,null,null,null,null,null,null,null,null,null,null,null,null,null,null,false,false,false,null,null,null,null,null,null,null,null,null,null,null,null,null,null,null,null,null,null,false,false,null,false,false,false,null,null,false,false,false]
[false,null,null,null,null,false,false,null,null,null,null,null,null,null,false,null,null,null,null,null,false,null,null,null,null,null,null,null,false,false,null,null,null,null,null,null,null,null,null,null,null,null,null,null,null,null,null,false,null,false,false,null,null,null,null,null,null,null,null,null,null,null,null,null,null,null,null,null,null,false,false,false,null,null,null,null,null,null,null,null,null,null,null,null,null,null,null,null,null,null,false,false,null,false,false,false,null,null,false,false,false]
[]
[null,null,null,null,null,null,null,null,null,null,null,null,null,null,null,null,null,null,null,null,null,null,null,null,null,null,null,null,null,null,null,null,null,null,null,null,null,null,null,null,null,null,null,null,null,null,null,null,null,null,null,null,null,null,null,null,null,null,null,null,null,null,null,null,null,null,null," "]
[]
[]
[]
[]
[]
[]
[]
[]
[]
[]
[]
[]
[]
[]
[]
[]
["DRY VAN"]
["Q1","BP1","BP2","Inexp","Inexp","Inexp","Inexp","Inexp","1Year","1Year","1Year","1Year","1Year","3Year","3Year","3Year","3Year","3Year","MostExp","MostExp","MostExp","MostExp","MostExp","BP7",null,null,null,null,null,"BP9","Q2","FUEL1","FUEL2A","FUEL2B","FUEL2C","FUEL3","FUEL4","FUEL5","Q3","PROD1A","PROD1B","PROD1C","PROD1D","PROD2A","PROD2B","PROD2C","PROD2D","PROD3","PROD4","PROD5","PROD5A ","PROD(AC)","Q4","SAFE1A","SAFE1B","SAFE1C","SAFE1D","SAFE2","SAFE3","SAFE(AC)","Q5","MULTI1","MULTI2A","MULTI2B","MULTI2C","MULTI2D","MULTI(AC)","Q6","TIME1","TIME(AC)","Q7","AREA1A","AREA1B","AREA1C","AREA2A","AREA2B","AREA2C","AREA3A","AREA3B","AREA3C","AREA4A","AREA4B","AREA4C","AREA5A","AREA5B","AREA5C","AREA(AC)","Q8","DETE1","DETE2","DETE3","DETE(AC)","Q9","LOAD1","LOAD2","LOAD(AC)","Q10","SHOR1","SHOR(AC)","Q11","HAZ1A","HAZ1B","HAZ1C","HAZ1D","HAZ(AC)","Q12","MISC1","MISC2","MISC3","MISC4","Shorter Length of Haul","DETEN"]
[{"$f":"IF(A40=TRUE,\"1\",IF(A41=TRUE,\"0\",\"NR\"))","v":"NR"},null,null,null,null,null,null,null,null,null,null,null,null,null,null,null,null,null,null,null,null,null,null,null,null,null,null,null,null,null,{"$f":"IF(AE40=TRUE,\"1\",IF(AE41=TRUE,\"0\",\"NR\"))","v":"NR"},null,null,null,null,null,null,null,{"$f":"IF(AM40=TRUE,\"1\",IF(AM41=TRUE,\"0\",\"NR\"))","v":"NR"},null,null,null,null,null,null,null,null,{"$f":"IF(AV40=TRUE,\"1\",IF(AV41=TRUE,\"0\",\"NR\"))","v":"NR"},null,{"$f":"IF(AX40=TRUE,\"1\",IF(AX41=TRUE,\"0\",\"NR\"))","v":"NR"},null,null,{"$f":"IF(BA40=TRUE,\"1\",IF(BA41=TRUE,\"0\",\"NR\"))","v":"NR"},null,null,null,null,null,null,null,{"$f":"IF(BI40=TRUE,\"1\",IF(BI41=TRUE,\"0\",\"NR\"))","v":"NR"},null,null,null,null,null,null,{"$f":"IF(BP40=TRUE,\"1\",IF(BP41=TRUE,\"0\",\"NR\"))","v":"NR"},null,null,{"$f":"IF(BS40=TRUE,\"1\",IF(BS41=TRUE,\"0\",\"NR\"))","v":"NR"},null,null,null,null,null,null,null,null,null,null,null,null,null,null,null,null,{"$f":"IF(CJ40=TRUE,\"1\",IF(CJ41=TRUE,\"0\",\"NR\"))","v":"NR"},{"$f":"IF(CK40=TRUE,\"All Loads\",IF(CK41=TRUE,\"Customer Specific\",\"NR\"))","v":"NR"},null,null,null,{"$f":"IF(CO40=TRUE,\"1\",IF(CO41=TRUE,\"0\",\"NR\"))","v":"NR"},null,null,null,{"$f":"IF(CS40=TRUE,\"1\",IF(CS41=TRUE,\"0\",\"NR\"))","v":"NR"},null,null,{"$f":"IF(CV40=TRUE,\"1\",IF(CV41=TRUE,\"0\",\"NR\"))","v":"NR"},null,null,null,null,null,{"$f":"IF(DB40=TRUE,\"1\",IF(DB40=FALSE,\"0\"))","v":"0"},null,null,null,null,null,{"$f":"IF(DH40=TRUE,\"1\",IF(DH41=TRUE,\"0\",\"NR\"))","v":"NR"}]
[false,null,null,null,null,null,null,null,null,null,null,null,null,null,null,null,null,null,null,null,null,null,null,null,null,null,null,null,null,null,false,null,null,null,null,null,null,null,false,null,null,null,null,null,null,null,null,false,null,false,null,null,false,null,null,null,null,null,null,null,false,null,null,null,null,null,null,false,null,null,false,null,null,null,null,null,null,null,null,null,null,null,null,null,null,null,null,false,false,null,null,null,false,null,null,null,false,null,null,false,null,null,null,null,null,false,null,null,null,null,null,false]
[false,null,null,null,null,null,null,null,null,null,null,null,null,null,null,null,null,null,null,null,null,null,null,null,null,null,null,null,null,null,false,null,null,null,null,null,null,null,false,null,null,null,null,null,null,null,null,false,null,false,null,null,false,null,null,null,null,null,null,null,false,null,null,null,null,null,null,false,null,null,false,null,null,null,null,null,null,null,null,null,null,null,null,null,null,null,null,false,false,null,null,null,false,null,null,null,false,null,null,false,null,null,null,null,null,null,null,null,null,null,null,false]
[]
[]
[]
[null,null,null,null,null,null,null,null,null,null,null,null,null,null,null,null,null,null,null,null,null,null,null,null,null,null,null,null,null,null,null,null,null,"  "]
["REEFER - Solo",null,null,null,null,null,null,null,null,null,null,null,null,null,null,null,null,null,null,null,null,null,null,null,null,null,null,null,null,null,null,null,null,null,null,null,null,null,null,null,null,null,null,null,null,null,null,null,null,null,null,null,null,null,null,null,null,null,null,null,null,null,null,null,null,null,null,null,null,null,null,null,null,null,null,null,null,null,null,null,null,null,null,null,null,null,null,null,null,null,null,null,null,null,null,null,null,null,null,null,null,null,null,null,null,null,null,null,null,null,"REEFER - Team"]
["Q1","BP1","BP2","Inexp","Inexp","Inexp","Inexp","Inexp","1Year","1Year","1Year","1Year","1Year","3Year","3Year","3Year","3Year","3Year","MostExp","MostExp","MostExp","MostExp","MostExp","BP7",null,null,null,null,null,"BP9","Q2","FUEL1","FUEL2A","FUEL2B","FUEL2C","FUEL3","FUEL4","FUEL5","Q3","PROD1A","PROD1B","PROD1C","PROD1D","PROD2A","PROD2B","PROD2C","PROD2D","PROD3","PROD4","PROD5","PROD5A ","PROD(AC)","Q4","SAFE1A","SAFE1B","SAFE1C","SAFE1D","SAFE2","SAFE3","SAFE(AC)","Q5","MULTI1","MULTI2A","MULTI2B","MULTI2C","MULTI2D","MULTI(AC)","Q6","TIME1","TIME(AC)","Q7","AREA1A","AREA1B","AREA1C","AREA2A","AREA2B","AREA2C","AREA3A","AREA3B","AREA3C","AREA4A","AREA4B","AREA4C","AREA5A","AREA5B","AREA5C","AREA(AC)","Q8","DETE1","DETE2","DETE3","DETE(AC)","Q9","LOAD1","LOAD2","LOAD(AC)","Q10","SHOR1","SHOR(AC)","Q11","HAZ1A","HAZ1B","HAZ1C","HAZ1D","HAZ(AC)","Q12","MISC1","MISC2","MISC3","MISC4","Q1","BP1","BP2","Inexp","Inexp","Inexp","Inexp","Inexp","1Year","1Year","1Year","1Year","1Year","3Year","3Year","3Year","3Year","3Year","MostExp","MostExp","MostExp","MostExp","MostExp","BP7",null,null,null,null,null,"BP9","Q2","FUEL1","FUEL2A","FUEL2B","FUEL2C","FUEL3","FUEL4","FUEL5","Q3","PROD1A","PROD1B","PROD1C","PROD1D","PROD2A","PROD2B","PROD2C","PROD2D","PROD3","PROD4","PROD5","PROD5A ","PROD(AC)","Q4","SAFE1A","SAFE1B","SAFE1C","SAFE1D","SAFE2","SAFE3","SAFE(AC)","Q5","MULTI1","MULTI2A","MULTI2B","MULTI2C","MULTI2D","MULTI(AC)","Q6","TIME1","TIME(AC)","Q7","AREA1A","AREA1B","AREA1C","AREA2A","AREA2B","AREA2C","AREA3A","AREA3B","AREA3C","AREA4A","AREA4B","AREA4C","AREA5A","AREA5B","AREA5C","AREA(AC)","Q8","DETE1","DETE2","DETE3","DETE(AC)","Q9","LOAD1","LOAD2","LOAD(AC)","Q10","SHOR1","SHOR(AC)","Q11","HAZ1A","HAZ1B","HAZ1C","HAZ1D","HAZ(AC)","Q12","MISC1","MISC2","MISC3","MISC4","Shorter Length of Haul Solo","Shorter Length of Haul Team","DETEN","DETEN"]
[{"$f":"IF(A49=TRUE,\"1\",IF(A50=TRUE,\"0\",\"NR\"))","v":"NR"},null,null,null,null,null,null,null,null,null,null,null,null,null,null,null,null,null,null,null,null,null,null,null,null,null,null,null,null,null,{"$f":"IF(AE49=TRUE,\"1\",IF(AE50=TRUE,\"0\",\"NR\"))","v":"NR"},null,null,null,null,null,null,null,{"$f":"IF(AM49=TRUE,\"1\",IF(AM50=TRUE,\"0\",\"NR\"))","v":"NR"},null,null,null,null,null,null,null,null,{"$f":"IF(AV49=TRUE,\"1\",IF(AV50=TRUE,\"0\",\"NR\"))","v":"NR"},null,{"$f":"IF(AX49=TRUE,\"1\",IF(AX50=TRUE,\"0\",\"NR\"))","v":"NR"},null,null,{"$f":"IF(BA49=TRUE,\"1\",IF(BA50=TRUE,\"0\",\"NR\"))","v":"NR"},null,null,null,null,null,null,null,{"$f":"IF(BI49=TRUE,\"1\",IF(BI50=TRUE,\"0\",\"NR\"))","v":"NR"},null,null,null,null,null,null,{"$f":"IF(BP49=TRUE,\"1\",IF(BP50=TRUE,\"0\",\"NR\"))","v":"NR"},null,null,{"$f":"IF(BS49=TRUE,\"1\",IF(BS50=TRUE,\"0\",\"NR\"))","v":"NR"},null,null,null,null,null,null,null,null,null,null,null,null,null,null,null,null,{"$f":"IF(CJ49=TRUE,\"1\",IF(CJ50=TRUE,\"0\",\"NR\"))","v":"NR"},{"$f":"IF(CK49=TRUE,\"All Loads\",IF(CK50=TRUE,\"Customer Specific\",\"NR\"))","v":"NR"},null,null,null,{"$f":"IF(CO49=TRUE,\"1\",IF(CO50=TRUE,\"0\",\"NR\"))","v":"NR"},null,null,null,{"$f":"IF(CS49=TRUE,\"1\",IF(CS50=TRUE,\"0\",\"NR\"))","v":"NR"},null,null,{"$f":"IF(CV49=TRUE,\"1\",IF(CV50=TRUE,\"0\",\"NR\"))","v":"NR"},null,null,null,null,null,{"$f":"IF(DB49=TRUE,\"1\",IF(DB49=FALSE,\"0\"))","v":"0"},null,null,null,null,{"$f":"IF(DG49=TRUE,\"1\",IF(DG50=TRUE,\"0\",\"NR\"))","v":"NR"},null,null,null,null,null,null,null,null,null,null,null,null,null,null,null,null,null,null,null,null,null,null,null,null,null,null,null,null,null,{"$f":"IF(EK49=TRUE,\"1\",IF(EK50=TRUE,\"0\",\"NR\"))","v":"NR"},null,null,null,null,null,null,null,{"$f":"IF(ES49=TRUE,\"1\",IF(ES50=TRUE,\"0\",\"NR\"))","v":"NR"},null,null,null,null,null,null,null,null,{"$f":"IF(FB49=TRUE,\"1\",IF(FB50=TRUE,\"0\",\"NR\"))","v":"NR"},null,{"$f":"IF(FD49=TRUE,\"1\",IF(FD50=TRUE,\"0\",\"NR\"))","v":"NR"},null,null,{"$f":"IF(FG49=TRUE,\"1\",IF(FG50=TRUE,\"0\",\"NR\"))","v":"NR"},null,null,null,null,null,null,null,{"$f":"IF(FO49=TRUE,\"1\",IF(FO50=TRUE,\"0\",\"NR\"))","v":"NR"},null,null,null,null,null,null,{"$f":"IF(FV49=TRUE,\"1\",IF(FV50=TRUE,\"0\",\"NR\"))","v":"NR"},null,null,{"$f":"IF(FY49=TRUE,\"1\",IF(FY50=TRUE,\"0\",\"NR\"))","v":"NR"},null,null,null,null,null,null,null,null,null,null,null,null,null,null,null,null,{"$f":"IF(GP49=TRUE,\"1\",IF(GP50=TRUE,\"0\",\"NR\"))","v":"NR"},{"$f":"IF(GQ49=TRUE,\"All Loads\",IF(GQ50=TRUE,\"Customer Specific\",\"NR\"))","v":"NR"},null,null,null,{"$f":"IF(GU49=TRUE,\"1\",IF(GU50=TRUE,\"0\",\"NR\"))","v":"NR"},null,null,null,{"$f":"IF(GY49=TRUE,\"1\",IF(GY50=TRUE,\"0\",\"NR\"))","v":"NR"},null,null,{"$f":"IF(HB49=TRUE,\"1\",IF(HB50=TRUE,\"0\",\"NR\"))","v":"NR"},null,null,null,null,null,{"$f":"IF(HH49=TRUE,\"1\",IF(HH49=FALSE,\"0\"))","v":"0"},null,null,null,null,null,null,{"$f":"IF(HO49=TRUE,\"1\",IF(HO50=TRUE,\"0\",\"NR\"))","v":"NR"},{"$f":"IF(HP49=TRUE,\"1\",IF(HP50=TRUE,\"0\",\"NR\"))","v":"NR"}]
[false,null,null,null,null,null,null,null,null,null,null,null,null,null,null,null,null,null,null,null,null,null,null,null,null,null,null,null,null,null,false,null,null,null,null,null,null,null,false,null,null,null,null,null,null,null,null,false,null,false,null,null,false,null,null,null,null,null,null,null,false,null,null,null,null,null,null,false,null,null,false,null,null,null,null,null,null,null,null,null,null,null,null,null,null,null,null,false,false,null,null,null,false,null,null,null,false,null,null,false,null,null,null,null,null,false,null,null,null,null,false,null,null,null,null,null,null,null,null,null,null,null,null,null,null,null,null,null,null,null,null,null,null,null,null,null,null,null,null,null,false,null,null,null,null,null,null,null,false,null,null,null,null,null,null,null,null,false,null,false,null,null,false,null,null,null,null,null,null,null,false,null,null,null,null,null,null,false,null,null,false,null,null,null,null,null,null,null,null,null,null,null,null,null,null,null,null,false,false,null,null,null,false,null,null,null,false,null,null,false,null,null,null,null,null,false,null,null,null,null,null,null,false,false]
[false,null,null,null,null,null,null,null,null,null,null,null,null,null,null,null,null,null,null,null,null,null,null,null,null,null,null,null,null,null,false,null,null,null,null,null,null,null,false,null,null,null,null,null,null,null,null,false,null,false,null,null,false,null,null,null,null,null,null,null,false,null,null,null,null,null,null,false,null,null,false,null,null,null,null,null,null,null,null,null,null,null,null,null,null,null,null,false,false,null,null,null,false,null,null,null,false,null,null,false,null,null,null,null,null,null,null,null,null,null,false,null,null,null,null,null,null,null,null,null,null,null,null,null,null,null,null,null,null,null,null,null,null,null,null,null,null,null,null,null,false,null,null,null,null,null,null,null,false,null,null,null,null,null,null,null,null,false,null,false,null,null,false,null,null,null,null,null,null,null,false,null,null,null,null,null,null,false,null,null,false,null,null,null,null,null,null,null,null,null,null,null,null,null,null,null,null,false,false,null,null,null,false,null,null,null,false,null,null,false,null,null,null,null,null,null,null,null,null,null,null,null,false,false]
[]
[]
["OTR TANK",null,null,null,null,null,null,null,null,null,null,null,null,null,null,null,null,null,null,null,null,null,null,null,null,null,null,null,null,null,null,null,null,null,null,null,null,null,null,null,null,null,null,null,null,null,null,null,null,null,null,null,null,null,null,null,null,null,null,null,null,null,null,null,null,null,null,null,null,null,null,null,null,null,null,null,null,null,null,null,null,null,null,null,null,null,null,null,null,null,null,null,null,null,null,null,null,null,null,null,null,null,null,null,null,null,null,null,null,null,"LOCAL TANK"]
["Q1","BP1","BP2","Inexp","Inexp","Inexp","Inexp","Inexp","1Year","1Year","1Year","1Year","1Year","3Year","3Year","3Year","3Year","3Year","MostExp","MostExp","MostExp","MostExp","MostExp","BP7",null,null,null,null,null,"BP9","Q2","FUEL1","FUEL2A","FUEL2B","FUEL2C","FUEL3","FUEL4","FUEL5","Q3","PROD1A","PROD1B","PROD1C","PROD1D","PROD2A","PROD2B","PROD2C","PROD2D","PROD3","PROD4","PROD5","PROD5A ","PROD(AC)","Q4","SAFE1A","SAFE1B","SAFE1C","SAFE1D","SAFE2","SAFE3","SAFE(AC)","Q5","MULTI1","MULTI2A","MULTI2B","MULTI2C","MULTI2D","MULTI(AC)","Q6","TIME1","TIME(AC)","Q7","AREA1A","AREA1B","AREA1C","AREA2A","AREA2B","AREA2C","AREA3A","AREA3B","AREA3C","AREA4A","AREA4B","AREA4C","AREA5A","AREA5B","AREA5C","AREA(AC)","Q8","DETE1","DETE2","DETE3","DETE(AC)","Q9","LOAD1","LOAD2","LOAD(AC)","Q10","SHOR1","SHOR(AC)","Q11","HAZ1A","HAZ1B","HAZ1C","HAZ1D","HAZ(AC)","Q12","MISC1","MISC2","MISC3","MISC4","Q13","BP1","BP2","Inexp","Inexp","Inexp","Inexp","Inexp","1Year","1Year","1Year","1Year","1Year","3Year","3Year","3Year","3Year","3Year","MostExp","MostExp","MostExp","MostExp","MostExp","BP7",null,null,null,null,null,"BP9","Q14","FUEL1","FUEL2A","FUEL2B","FUEL2C","FUEL3","FUEL4","FUEL5","Q15","PROD1A","PROD1B","PROD1C","PROD1D","PROD2A","PROD2B","PROD2C","PROD2D","PROD3","PROD4","PROD5","PROD5A ","PROD(AC)","Q16","SAFE1A","SAFE1B","SAFE1C","SAFE1D","SAFE2","SAFE3","SAFE(AC)","Q17","MULTI1","MULTI2A","MULTI2B","MULTI2C","MULTI2D","MULTI(AC)","Q18","TIME1","TIME(AC)","Q19","AREA1A","AREA1B","AREA1C","AREA2A","AREA2B","AREA2C","AREA3A","AREA3B","AREA3C","AREA4A","AREA4B","AREA4C","AREA5A","AREA5B","AREA5C","AREA(AC)","Q20","DETE1","DETE2","DETE3","DETE(AC)","Q21","LOAD1","LOAD2","LOAD(AC)","Q22","SHOR1","SHOR(AC)","Q23","HAZ1A","HAZ1B","HAZ1C","HAZ1D","HAZ(AC)","Q24","MISC1","MISC2","MISC3","MISC4","Shorter Length of Haul OTR","Shorter Length of Haul Local","DETEN","DETEN"]
[{"$f":"IF(A56=TRUE,\"1\",IF(A57=TRUE,\"0\",\"NR\"))","v":"NR"},null,null,null,null,null,null,null,null,null,null,null,null,null,null,null,null,null,null,null,null,null,null,null,null,null,null,null,null,null,{"$f":"IF(AE56=TRUE,\"1\",IF(AE57=TRUE,\"0\",\"NR\"))","v":"NR"},null,null,null,null,null,null,null,{"$f":"IF(AM56=TRUE,\"1\",IF(AM57=TRUE,\"0\",\"NR\"))","v":"NR"},null,null,null,null,null,null,null,null,{"$f":"IF(AV56=TRUE,\"1\",IF(AV57=TRUE,\"0\",\"NR\"))","v":"NR"},null,{"$f":"IF(AX56=TRUE,\"1\",IF(AX57=TRUE,\"0\",\"NR\"))","v":"NR"},null,null,{"$f":"IF(BA56=TRUE,\"1\",IF(BA57=TRUE,\"0\",\"NR\"))","v":"NR"},null,null,null,null,null,null,null,{"$f":"IF(BI56=TRUE,\"1\",IF(BI57=TRUE,\"0\",\"NR\"))","v":"NR"},null,null,null,null,null,null,{"$f":"IF(BP56=TRUE,\"1\",IF(BP57=TRUE,\"0\",\"NR\"))","v":"NR"},null,null,{"$f":"IF(BS56=TRUE,\"1\",IF(BS57=TRUE,\"0\",\"NR\"))","v":"NR"},null,null,null,null,null,null,null,null,null,null,null,null,null,null,null,null,{"$f":"IF(CJ56=TRUE,\"1\",IF(CJ57=TRUE,\"0\",\"NR\"))","v":"NR"},{"$f":"IF(CK56=TRUE,\"All Loads\",IF(CK57=TRUE,\"Customer Specific\",\"NR\"))","v":"NR"},null,null,null,{"$f":"IF(CO56=TRUE,\"1\",IF(CO57=TRUE,\"0\",\"NR\"))","v":"NR"},null,null,null,{"$f":"IF(CS56=TRUE,\"1\",IF(CS57=TRUE,\"0\",\"NR\"))","v":"NR"},null,null,{"$f":"IF(CV56=TRUE,\"1\",IF(CV57=TRUE,\"0\",\"NR\"))","v":"NR"},null,null,null,null,null,{"$f":"IF(DB56=TRUE,\"1\",IF(DB56=FALSE,\"0\"))","v":"0"},null,null,null,null,{"$f":"IF(DG56=TRUE,\"1\",IF(DG57=TRUE,\"0\",\"NR\"))","v":"NR"},null,null,null,null,null,null,null,null,null,null,null,null,null,null,null,null,null,null,null,null,null,null,null,null,null,null,null,null,null,{"$f":"IF(EK56=TRUE,\"1\",IF(EK57=TRUE,\"0\",\"NR\"))","v":"NR"},null,null,null,null,null,null,null,{"$f":"IF(ES56=TRUE,\"1\",IF(ES57=TRUE,\"0\",\"NR\"))","v":"NR"},null,null,null,null,null,null,null,null,{"$f":"IF(FB56=TRUE,\"1\",IF(FB57=TRUE,\"0\",\"NR\"))","v":"NR"},null,{"$f":"IF(FD56=TRUE,\"1\",IF(FD57=TRUE,\"0\",\"NR\"))","v":"NR"},null,null,{"$f":"IF(FG56=TRUE,\"1\",IF(FG57=TRUE,\"0\",\"NR\"))","v":"NR"},null,null,null,null,null,null,null,{"$f":"IF(FO56=TRUE,\"1\",IF(FO57=TRUE,\"0\",\"NR\"))","v":"NR"},null,null,null,null,null,null,{"$f":"IF(FV56=TRUE,\"1\",IF(FV57=TRUE,\"0\",\"NR\"))","v":"NR"},null,null,{"$f":"IF(FY56=TRUE,\"1\",IF(FY57=TRUE,\"0\",\"NR\"))","v":"NR"},null,null,null,null,null,null,null,null,null,null,null,null,null,null,null,null,{"$f":"IF(GP56=TRUE,\"1\",IF(GP57=TRUE,\"0\",\"NR\"))","v":"NR"},{"$f":"IF(GQ56=TRUE,\"All Loads\",IF(GQ57=TRUE,\"Customer Specific\",\"NR\"))","v":"NR"},null,null,null,{"$f":"IF(GU56=TRUE,\"1\",IF(GU57=TRUE,\"0\",\"NR\"))","v":"NR"},null,null,null,{"$f":"IF(GY56=TRUE,\"1\",IF(GY57=TRUE,\"0\",\"NR\"))","v":"NR"},null,null,{"$f":"IF(HB56=TRUE,\"1\",IF(HB57=TRUE,\"0\",\"NR\"))","v":"NR"},null,null,null,null,null,{"$f":"IF(HH56=TRUE,\"1\",IF(HH56=FALSE,\"0\"))","v":"0"},null,null,null,null,null,null,{"$f":"IF(HO56=TRUE,\"1\",IF(HO57=TRUE,\"0\",\"NR\"))","v":"NR"},{"$f":"IF(HP56=TRUE,\"1\",IF(HP57=TRUE,\"0\",\"NR\"))","v":"NR"}]
[false,null,null,null,null,null,null,null,null,null,null,null,null,null,null,null,null,null,null,null,null,null,null,null,null,null,null,null,null,null,false,null,null,null,null,null,null,null,false,null,null,null,null,null,null,null,null,false,null,false,null,null,false,null,null,null,null,null,null,null,false,null,null,null,null,null,null,false,null,null,false,null,null,null,null,null,null,null,null,null,null,null,null,null,null,null,null,false,false,null,null,null,false,null,null,null,false,null,null,false,null,null,null,null,null,false,null,null,null,null,false,null,null,null,null,null,null,null,null,null,null,null,null,null,null,null,null,null,null,null,null,null,null,null,null,null,null,null,null,null,false,null,null,null,null,null,null,null,false,null,null,null,null,null,null,null,null,false,null,false,null,null,false,null,null,null,null,null,null,null,false,null,null,null,null,null,null,false,null,null,false,null,null,null,null,null,null,null,null,null,null,null,null,null,null,null,null,false,false,null,null,null,false,null,null,null,false,null,null,false,null,null,null,null,null,false,null,null,null,null,null,null,false,false]
[false,null,null,null,null,null,null,null,null,null,null,null,null,null,null,null,null,null,null,null,null,null,null," ",null,null,null,null,null,null,false,null,null,null,null,null,null,null,false,null,null,null,null,null,null,null,null,false,null,false,null,null,false,null,null,null,null,null,null,null,false,null,null,null,null,null,null,false,null,null,false,null,null,null,null,null,null,null,null,null,null,null,null,null,null,null,null,false,false,null,null,null,false,null,null,null,false,null,null,false,null,null,null,null,null,null,null,null,null,null,false,null,null,null,null,null,null,null,null,null,null,null,null,null,null,null,null,null,null,null,null,null,null,null,null,null,null,null,null,null,false,null,null,null,null,null,null,null,false,null,null,null,null,null,null,null,null,false,null,false,null,null,false,null,null,null,null,null,null,null,false,null,null,null,null,null,null,false,null,null,false,null,null,null,null,null,null,null,null,null,null,null,null,null,null,null,null,false,false,null,null,null,false,null,null,null,false,null,null,false,null,null,null,null,null,null,null,null,null,null,null,null,false,false]
[]
[]
[]
["ALL OTHER EMPLOYEES"]
["Q1","BP1","BP2","Inexp","Inexp","Inexp","Inexp","Inexp","1Year","1Year","1Year","1Year","1Year","3Year","3Year","3Year","3Year","3Year","MostExp","MostExp","MostExp","MostExp","MostExp","BP7",null,null,null,null,null,"BP9","Q2","FUEL1","FUEL2A","FUEL2B","FUEL2C","FUEL3","FUEL4","FUEL5","Q3","PROD1A","PROD1B","PROD1C","PROD1D","PROD2A","PROD2B","PROD2C","PROD2D","PROD3","PROD4","PROD5","PROD5A ","PROD(AC)","Q4","SAFE1A","SAFE1B","SAFE1C","SAFE1D","SAFE2","SAFE3","SAFE(AC)","Q5","MULTI1","MULTI2A","MULTI2B","MULTI2C","MULTI2D","MULTI(AC)","Q6","TIME1","TIME(AC)","Q7","AREA1A","AREA1B","AREA1C","AREA2A","AREA2B","AREA2C","AREA3A","AREA3B","AREA3C","AREA4A","AREA4B","AREA4C","AREA5A","AREA5B","AREA5C","AREA(AC)","Q8","DETE1","DETE2","DETE3","DETE(AC)","Q9","LOAD1","LOAD2","LOAD(AC)","Q10","SHOR1","SHOR(AC)","Q11","HAZ1A","HAZ1B","HAZ1C","HAZ1D","HAZ(AC)","Q12","MISC1","MISC2","MISC3","MISC4","Shorter Length of Haul","DETEN"]
[{"$f":"IF(A64=TRUE,\"1\",IF(A65=TRUE,\"0\",\"NR\"))","v":"NR"},null,null,null,null,null,null,null,null,null,null,null,null,null,null,null,null,null,null,null,null,null,null,null,null,null,null,null,null,null,{"$f":"IF(AE64=TRUE,\"1\",IF(AE65=TRUE,\"0\",\"NR\"))","v":"NR"},null,null,null,null,null,null,null,{"$f":"IF(AM64=TRUE,\"1\",IF(AM65=TRUE,\"0\",\"NR\"))","v":"NR"},null,null,null,null,null,null,null,null,{"$f":"IF(AV64=TRUE,\"1\",IF(AV65=TRUE,\"0\",\"NR\"))","v":"NR"},null,{"$f":"IF(AX64=TRUE,\"1\",IF(AX65=TRUE,\"0\",\"NR\"))","v":"NR"},null,null,{"$f":"IF(BA64=TRUE,\"1\",IF(BA65=TRUE,\"0\",\"NR\"))","v":"NR"},null,null,null,null,null,null,null,{"$f":"IF(BI64=TRUE,\"1\",IF(BI65=TRUE,\"0\",\"NR\"))","v":"NR"},null,null,null,null,null,null,{"$f":"IF(BP64=TRUE,\"1\",IF(BP65=TRUE,\"0\",\"NR\"))","v":"NR"},null,null,{"$f":"IF(BS64=TRUE,\"1\",IF(BS65=TRUE,\"0\",\"NR\"))","v":"NR"},null,null,null,null,null,null,null,null,null,null,null,null,null,null,null,null,{"$f":"IF(CJ64=TRUE,\"1\",IF(CJ65=TRUE,\"0\",\"NR\"))","v":"NR"},{"$f":"IF(CK64=TRUE,\"All Loads\",IF(CK65=TRUE,\"Customer Specific\",\"NR\"))","v":"NR"},null,null,null,{"$f":"IF(CO64=TRUE,\"1\",IF(CO65=TRUE,\"0\",\"NR\"))","v":"NR"},null,null,null,{"$f":"IF(CS64=TRUE,\"1\",IF(CS65=TRUE,\"0\",\"NR\"))","v":"NR"},null,null,{"$f":"IF(CV64=TRUE,\"1\",IF(CV65=TRUE,\"0\",\"NR\"))","v":"NR"},null,null,null,null,null,{"$f":"IF(DB64=TRUE,\"1\",IF(DB64=FALSE,\"0\"))","v":"0"},null,null,null,null,null,{"$f":"IF(DH64=TRUE,\"1\",IF(DH65=TRUE,\"0\",\"NR\"))","v":"NR"}]
[false,null,null,null,null,null,null,null,null,null,null,null,null,null,null,null,null,null,null,null,null,null,null,null,null,null,null,null,null,null,false,null,null,null,null,null,null,null,false,null,null,null,null,null,null,null,null,false,null,false,null,null,false,null,null,null,null,null,null,null,false,null,null,null,null,null,null,false,null,null,false,null,null,null,null,null,null,null,null,null,null,null,null,null,null,null,null,false,false,null,null,null,false,null,null,null,false,null,null,false,null,null,null,null,null,false,null,null,null,null,null,false]
[false,null,null,null,null,null,null,null,null,null,null,null,null,null,null,null,null,null,null,null,null,null,null,null,null,null,null,null,null,null,false,null,null,null,null,null,null,null,false,null,null,null,null,null,null,null,null,false,null,false,null,null,false,null,null,null,null,null,null,null,false,null,null,null,null,null,null,false,null,null,false,null,null,null,null,null,null,null,null,null,null,null,null,null,null,null,null,false,false,null,null,null,false,null,null,null,false,null,null,false,null,null,null,null,null,null,null,null,null,null,null,false]
[]
[]
[]
[]
[]
[]
[]
[]
[]
[]
[]
["IC"]
["Q1","BP1","BP2","BP3","BP4 ","BP4A","BP4B","BP4C","BP4D","BP4G","BP4H",null,"BP(AC)","Q2","PROD1A","PROD1B","PROD1C","PROD1D","PROD2A","PROD2B","PROD2C","PROD2D","PROD3","PROD4","PROD5","PROD5A ","PROD(AC)","Q3","SAFE1A","SAFE1B","SAFE1C","SAFE1D","SAFE2","SAFE3","SAFE(AC)","Q4","DETE1","DETE2","DETE3","DETE4","DETE(AC)",null,"Q5","LOAD1","LOAD2","LOAD(AC)","Q6","LENG1","LENG(AC)","Q7","SIGN1","SIGN2","SIGN(AC)","Q8","MULTIA1","MULTIB1","MULTIB2","MULTIB3","MULTIB4","MULTI(AC)","Q9","HAZ1A","HAZ1B","HAZ1C","HAZ1D","HAZ(AC)","Q10","Q11","Q12","Q13","Q14","Q15","Q16","Q17","Avg. Age","Max Age?","Allowed Age","DETEN",null,null,null,null,null,null,null,null,null,null,null,null,null,null,null,null,null,null,null,null,null,null,null,null,null,null,null,null,null,null,null,null,null,null,null,null,null,null,null,null,null,null,null,null,null,null,null,null,null,null,null,null,null,null,null,null,null,null,null,null,null,null,null,null,null,null,null,null,null,null,null,null,null,null,null,null,null,null,null,null,null,null,null,null,null,null,null,null,null,null,null,null,null,null,null,null,null,null,null,null,null,null,null,null,null,null,null,null,null,null,null,null,null,null,"`"]
[{"$f":"IF(A80=TRUE,\"1\",IF(A81=TRUE,\"0\",\"NR\"))","v":"NR"},null,null,null,null,null,null,null,null,null,null,null,null,{"$f":"IF(N80=TRUE,\"1\",IF(N81=TRUE,\"0\",\"NR\"))","v":"NR"},null,null,null,null,null,null,null,null,{"$f":"IF(W80=TRUE,\"1\",IF(W81=TRUE,\"0\",\"NR\"))","v":"NR"},null,{"$f":"IF(Y80=TRUE,\"1\",IF(Y81=TRUE,\"0\",\"NR\"))","v":"NR"},null,null,{"$f":"IF(AB80=TRUE,\"1\",IF(AB81=TRUE,\"0\",\"NR\"))","v":"NR"},null,null,null,null,null,null,null,{"$f":"IF(AJ80=TRUE,\"1\",IF(AJ81=TRUE,\"0\",\"NR\"))","v":"NR"},{"$f":"IF(AK80=TRUE,\"1\",IF(AK81=TRUE,\"0\",\"NR\"))","v":"NR"},null,null,null,null,null,{"$f":"IF(AQ80=TRUE,\"1\",IF(AQ81=TRUE,\"0\",\"NR\"))","v":"NR"},null,null,null,{"$f":"IF(AU80=TRUE,\"1\",IF(AU81=TRUE,\"0\",\"NR\"))","v":"NR"},null,null,{"$f":"IF(AX80=TRUE,\"1\",IF(AX81=TRUE,\"0\",\"NR\"))","v":"NR"},null,null,null,{"$f":"IF(BB80=TRUE,\"1\",IF(BB81=TRUE,\"0\",\"NR\"))","v":"NR"},null,null,null,null,null,null,{"$f":"IF(BI80=TRUE,\"1\",IF(BI81=TRUE,\"0\",\"NR\"))","v":"NR"},null,null,null,null,null,null,null,null,null,null,null,null,null,{"$f":"'Independent Contractors'!P28","v":0},{"$f":"IF(BX80=TRUE,\"1\",IF(BX81=TRUE,\"0\",\"NR\"))","v":"NR"},null,{"$f":"IF(BZ80=TRUE,\"1\",IF(BZ81=TRUE,\"0\",\"NR\"))","v":"NR"}]
[false,null,null,null,null,null,null,null,null,null,null,null,null,false,null,null,null,null,null,null,null,null,false,null,false,null,null,false,null,null,null,null,null,null,null,false,false,null,null,null,null,null,false,null,null,null,false,null,null,false,null,null,null,false,null,null,null,null,null,null,false,null,null,null,null,null,null,null,null,null,null,null,null,null,null,false,null,false]
[false,null,null,null,null,null,null,null,null,null,null,null,null,false,null,null,null,null,null,null,null,null,false,null,false,null,null,false,null,null,null,null,null,null,null,false,false,null,null,null,null,null,false,null,null,null,false,null,null,false,null,null,null,false,null,null,null,null,null,null,false,null,null,null,null,null,null,null,null,null,null,null,null,null,null,false,null,false]